[Event "WYCC U14 Open 2019"]
[Site "Mumbai"]
[Date "2019.10.11"]
[Round "10.13"]
[White "Dhrupad Kashyap"]
[Black "Colbow, Collin"]
[Result "1-0"]
[ECO "B51"]
[WhiteElo "2000"]
[BlackElo "2148"]
[Annotator "NA"]
[PlyCount "137"]
[EventDate "2019.10.02"]
[EventType "swiss"]
[EventCountry "IND"]
[SourceTitle "playchess.com"]
[Source "ChessBase"]
[SourceQuality "1"]
[TimeControl "40/5400+30:1800+30"]

1. e4 {[%emt 0:00:00]} c5 {[%emt 0:01:10]} 2. Nf3 {[%emt 0:00:58]} d6 {[%emt 0:00:06]} 3. Bb5+ {[%emt 0:01:09]} Nd7 {[%emt 0:00:08]} 4. O-O {[%emt 0:06:56]} a6 {[%emt 0:00:31]} 5. Bxd7+ {[%emt 0:02:11]} Bxd7 {[%emt 0:00:29]} 6. d4 {[%emt 0:00:08]} cxd4 {[%emt 0:00:28]} 7. Qxd4 {[%emt 0:00:14]} e5 {[%emt 0:00:32]} 8. Qd3 {[%emt 0:00:39]} h6 {[%emt 0:00:15]} 9. Nc3 {[%emt 0:07:42]} Nf6 {[%emt 0:00:35]} 10. Nd2 {[%emt 0:03:11]} Be7 {[%emt 0:09:59]} 11. Nc4 {[%emt 0:02:44]} Be6 {[%emt 0:06:57]} 12. Be3 Bxc4 {[%emt 0:09:56]} 13. Qxc4 {[%emt 0:09:05]} Rc8 {[%emt 0:00:11]} 14. Qb3 {[%emt 0:02:10]} b5 {[%emt 0:03:46]} 15. Rfd1 {[%emt 0:05:25]} O-O {[%emt 0:04:29]} 16. f3 {[%emt 0:02:21]} Qc7 {[%emt 0:04:52]} 17. Rac1 {[%emt 0:06:33]} Qc4 {[%emt 0:06:47]} 18. Nd5 {[%emt 0:00:31]} Nxd5 {[%emt 0:00:17]} 19. Rxd5 {[%emt 0:00:11]} Rc6 {[%emt 0:02:40]} 20. Qxc4 {[%emt 0:07:48]} bxc4 {[%emt 0:00:15]} 21. b4 {[%emt 0:00:33]} cxb3 {[%emt 0:09:34]} 22. axb3 {[%emt 0:00:05]} Rb8 {[%emt 0:01:12]} 23. Rd3 {[%emt 0:00:27]} Bg5 {[%emt 0:03:53]} 24. Kf2 {[%emt 0:02:24]} Kf8 {[%emt 0:00:45]} 25. Bxg5 {[%emt 0:02:31]} hxg5 {[%emt 0:00:10]} 26. Ke2 {[%emt 0:00:20]} Ke7 {[%emt 0:03:18]} 27. Kd2 {[%emt 0:00:44]} Rbc8 {[%emt 0:01:29]} 28. c4 {[%emt 0:02:04]} g6 {[%emt 0:02:19]} 29. h3 {[%emt 0:04:50]} f5 {[%emt 0:01:53]} 30. Ra1 {[%emt 0:03:28]} Rf8 {[%emt 0:07:39]} 31. Re3 {[%emt 0:01:58]} Ke6 {[%emt 0:04:32]} 32. Kc3 {[%emt 0:01:25]} Kd7 {[%emt 0:02:13]} 33. Ra5 {[%emt 0:00:56]} Rfc8 {[%emt 0:00:41]} 34. Re2 {[%emt 0:02:55]} Kc7 {[%emt 0:00:28]} 35. Kd3 {[%emt 0:01:15]} Rb8 {[%emt 0:00:43]} 36. Ra3 {[%emt 0:00:14]} Rcb6 {[%emt 0:00:49]} 37. Kc3 {[%emt 0:00:29]} Rb4 {[%emt 0:02:08]} 38. Re3 {[%emt 0:01:32]} R4b6 {[%emt 0:06:41]} 39. Kc2 {[%emt 0:00:40]} Kc6 {[%emt 0:00:36]} 40. Ra5 {[%emt 0:05:26]} Kb7 {[%emt 0:03:39]} 41. Rd5 {[%emt 0:30:52]} Rc6 {[%emt 0:02:26]} 42. Kc3 {[%emt 0:00:00]} Rbc8 {[%emt 0:04:52]} 43. Red3 {[%emt 0:00:00]} Kc7 {[%emt 0:00:24]} 44. Kb4 {[%emt 0:00:00]} Rb8+ {[%emt 0:01:48]} 45. Ka4 {[%emt 0:00:00]} Rc8 {[%emt 0:10:58]} 46. Rc3 {[%emt 0:00:00]} Kd7 {[%emt 0:01:04]} 47. Kb4 {[%emt 0:00:00]} Rb8+ {[%emt 0:01:16]} 48. Ka5 {[%emt 0:00:00]} Rbc8 {[%emt 0:00:28]} 49. Rcd3 {[%emt 0:00:00]} Ke6 {[%emt 0:01:42]} 50. b4 {[%emt 0:00:00]} Rb8 {[%emt 0:01:10]} 51. b5 {[%emt 0:00:00]} axb5 {[%emt 0:00:20]} 52. cxb5 {[%emt 0:00:00]} Ra8+ {[%emt 0:00:30]} 53. Kb4 {[%emt 0:00:00]} Rb6 {[%emt 0:01:07]} 54. Ra3 {[%emt 0:00:00]} Rxa3 {[%emt 0:00:42]} 55. Kxa3 {[%emt 0:00:00]} Kd7 {[%emt 0:00:35]} 56. Kb4 Rb8 {[%emt 0:00:14]} 57. Rd2 {[%emt 0:00:00]} Rf8 {[%emt 0:01:01]} 58. Ka5 {[%emt 0:00:00]} fxe4 {[%emt 0:01:06]} 59. fxe4 {[%emt 0:00:00]} Rf4 {[%emt 0:04:12]} 60. Re2 {[%emt 0:00:00]} Kc7 {[%emt 0:00:38]} 61. Ka6 {[%emt 0:00:00]} Rf1 {[%emt 0:00:31]} 62. Rc2+ {[%emt 0:00:00]} Kb8 {[%emt 0:00:14]} 63. b6 {[%emt 0:00:00]} Re1 {[%emt 0:01:34]} 64. Rf2 {[%emt 0:00:00]} Ra1+ {[%emt 0:00:25]} 65. Kb5 {[%emt 0:00:00]} Rc1 {[%emt 0:00:38]} 66. Rd2 {[%emt 0:00:00]} Rb1+ {[%emt 0:00:46]} 67. Kc6 {[%emt 0:00:00]} Rc1+ {[%emt 0:01:45]} 68. Kxd6 {[%emt 0:00:00]} Kb7 {[%emt 0:00:05]} 69. Rb2 {[%emt 0:00:00]} 1-0

[Event "WYCC U14 Open 2019"]
[Site "Mumbai"]
[Date "2019.10.11"]
[Round "10.14"]
[White "Pranav Vijay"]
[Black "Vilcu, Matei-Stefan"]
[Result "1-0"]
[ECO "A45"]
[WhiteElo "2265"]
[BlackElo "1975"]
[Annotator "ChessBase"]
[PlyCount "53"]
[EventDate "2019.10.02"]
[EventType "swiss"]
[EventCountry "IND"]
[SourceTitle "playchess.com"]
[Source "ChessBase"]
[SourceQuality "1"]
[TimeControl "40/5400+30:1800+30"]

1. d4 {[%emt 0:01:56]} Nf6 {[%emt 0:00:00]} 2. Bg5 {[%emt 0:00:14]} Ne4 {[%emt 0:00:00]} 3. Bf4 {[%emt 0:00:12]} c5 {[%emt 0:00:18]} 4. f3 {[%emt 0:00:10]} Qa5+ {[%emt 0:01:07]} 5. c3 {[%emt 0:00:35]} Nf6 {[%emt 0:00:36]} 6. d5 {[%emt 0:01:01]} e6 {[%emt 0:00:51]} 7. e4 {[%emt 0:01:11]} exd5 {[%emt 0:01:01]} 8. exd5 {[%emt 0:00:13]} d6 {[%emt 0:00:32]} 9. Na3 {[%emt 0:02:08]} Be7 {[%emt 0:01:01]} 10. Nc4 {[%emt 0:04:05]} Qd8 {[%emt 0:00:25]} 11. a4 {[%emt 0:00:33]} Na6 {[%emt 0:02:21]} 12. g4 {[%emt 0:03:29]} Nc7 {[%emt 0:02:56]} 13. Ne3 {[%emt 0:00:27]} b6 {[%emt 0:05:34]} 14. Nh3 {[%emt 0:04:53]} a6 {[%emt 0:04:50]} 15. Bg3 {[%emt 0:02:49]} Bd7 {[%emt 0:09:34]} 16. Nf4 {[%emt 0:01:58]} g5 {[%emt 0:04:51]} 17. Nh3 {[%emt 0:01:09]} h5 {[%emt 0:04:34]} 18. Bg2 {[%emt 0:04:47]} Qc8 {[%emt 0:03:09]} 19. O-O {[%emt 0:03:32]} Rg8 {[%emt 0:08:01]} 20. Qd3 {[%emt 0:01:05]} Rg6 {[%emt 0:03:31]} 21. Rae1 {[%emt 0:01:04]} Kf8 {[%emt 0:02:21]} 22. f4 {[%emt 0:07:29]} Nxg4 {[%emt 0:07:12]} 23. fxg5 {[%emt 0:01:50]} Rg7 {[%emt 0:03:43]} 24. Nc4 {[%emt 0:00:47]} Qb7 {[%emt 0:01:48]} 25. Nxd6 {[%emt 0:00:41]} Bxd6 {[%emt 0:00:39]} 26. Bxd6+ {[%emt 0:00:10]} Kg8 {[%emt 0:00:01]} 27. Re7 {[%emt 0:00:36]} 1-0

[Event "WYCC U14 Open 2019"]
[Site "Mumbai"]
[Date "2019.10.11"]
[Round "10.15"]
[White "Aaryan Varshney"]
[Black "Ayush Sharma"]
[Result "1-0"]
[ECO "D63"]
[WhiteElo "2239"]
[BlackElo "1939"]
[Annotator "NA"]
[PlyCount "149"]
[EventDate "2019.10.02"]
[EventType "swiss"]
[EventCountry "IND"]
[SourceTitle "playchess.com"]
[Source "ChessBase"]
[SourceQuality "1"]
[TimeControl "40/5400+30:1800+30"]

1. d4 {[%emt 0:00:00]} Nf6 {[%emt 0:00:00]} 2. c4 {[%emt 0:00:00]} e6 {[%emt 0:00:00]} 3. Nf3 {[%emt 0:00:01]} d5 {[%emt 0:00:29]} 4. Nc3 {[%emt 0:00:14]} Be7 {[%emt 0:00:13]} 5. Bg5 {[%emt 0:00:34]} O-O {[%emt 0:00:22]} 6. e3 {[%emt 0:00:01]} Nbd7 {[%emt 0:01:19]} 7. Rc1 {[%emt 0:00:23]} Re8 {[%emt 0:05:51]} 8. Bd3 {[%emt 0:02:00]} c5 {[%emt 0:10:16]} 9. cxd5 {[%emt 0:01:31]} exd5 {[%emt 0:04:27]} 10. dxc5 {[%emt 0:03:28]} Nxc5 {[%emt 0:00:15]} 11. Bb5 {[%emt 0:03:21]} Bd7 {[%emt 0:00:02]} 12. Bxd7 {[%emt 0:02:46]} Qxd7 {[%emt 0:00:06]} 13. O-O {[%emt 0:07:09]} Red8 {[%emt 0:08:33]} 14. Nd4 {[%emt 0:03:15]} Nce4 {[%emt 0:01:58]} 15. Nxe4 {[%emt 0:01:20]} dxe4 {[%emt 0:00:57]} 16. Qb3 {[%emt 0:01:31]} Ng4 {[%emt 0:13:42]} 17. Bxe7 {[%emt 0:06:45]} Qxe7 {[%emt 0:00:07]} 18. Nf5 {[%emt 0:02:00]} Qe5 {[%emt 0:12:27]} 19. Ng3 {[%emt 0:00:31]} b6 {[%emt 0:03:19]} 20. h3 {[%emt 0:02:06]} Nf6 {[%emt 0:00:14]} 21. Rfd1 {[%emt 0:00:22]} Rxd1+ {[%emt 0:09:44]} 22. Rxd1 {[%emt 0:01:40]} h5 {[%emt 0:01:28]} 23. Ne2 {[%emt 0:02:05]} Rc8 {[%emt 0:01:01]} 24. Nc3 {[%emt 0:01:20]} Qe7 {[%emt 0:07:27]} 25. Qa4 {[%emt 0:04:53]} Rc5 {[%emt 0:02:50]} 26. Rd4 {[%emt 0:03:44]} Re5 {[%emt 0:01:19]} 27. Qc6 {[%emt 0:01:30]} Qe8 {[%emt 0:00:26]} 28. Qc7 {[%emt 0:09:24]} Qe7 {[%emt 0:00:18]} 29. Rd8+ {[%emt 0:00:47]} Kh7 {[%emt 0:00:14]} 30. Qb8 {[%emt 0:01:01]} Kg6 {[%emt 0:01:44]} 31. Ne2 {[%emt 0:03:10]} Rc5 {[%emt 0:00:44]} 32. b4 {[%emt 0:06:31]} Rc7 {[%emt 0:02:56]} 33. Nf4+ {[%emt 0:00:56]} Kg5 {[%emt 0:00:50]} 34. Nd5 {[%emt 0:16:06]} Nxd5 {[%emt 0:00:23]} 35. Rxd5+ {[%emt 0:00:02]} Kf6 {[%emt 0:01:32]} 36. g4 {[%emt 0:01:41]} hxg4 {[%emt 0:03:20]} 37. hxg4 {[%emt 0:01:14]} Ke6 {[%emt 0:01:59]} 38. Rd4 {[%emt 0:01:06]} f5 {[%emt 0:02:56]} 39. Qg8+ {[%emt 0:02:41]} Kf6 {[%emt 0:02:06]} 40. gxf5 {[%emt 0:00:58]} Kxf5 {[%emt 0:01:29]} 41. Qh7+ {[%emt 0:31:21]} g6 {[%emt 0:00:54]} 42. Qh3+ {[%emt 0:00:00]} Kf6 {[%emt 0:00:55]} 43. Qg4 {[%emt 0:00:00]} Kg7 {[%emt 0:03:12]} 44. Rxe4 {[%emt 0:00:00]} Rc1+ {[%emt 0:00:03]} 45. Kg2 {[%emt 0:00:00]} Qb7 {[%emt 0:00:19]} 46. Qe6 {[%emt 0:00:00]} Qf7 {[%emt 0:01:54]} 47. Qe5+ {[%emt 0:00:00]} Qf6 {[%emt 0:00:08]} 48. Qe7+ {[%emt 0:00:00]} Qf7 {[%emt 0:00:06]} 49. b5 {[%emt 0:00:00]} Rc5 {[%emt 0:02:01]} 50. Qxf7+ {[%emt 0:00:00]} Kxf7 {[%emt 0:00:02]} 51. a4 {[%emt 0:00:00]} a6 {[%emt 0:01:03]} 52. bxa6 {[%emt 0:00:00]} Ra5 {[%emt 0:00:02]} 53. Rb4 {[%emt 0:00:00]} Rxa6 {[%emt 0:00:07]} 54. f4 {[%emt 0:00:00]} Kf6 {[%emt 0:01:11]} 55. e4 {[%emt 0:00:00]} Ke6 {[%emt 0:00:51]} 56. Kf3 {[%emt 0:00:00]} Kd6 {[%emt 0:00:07]} 57. Kg4 {[%emt 0:00:00]} Kc5 {[%emt 0:00:25]} 58. Rb5+ {[%emt 0:00:00]} Kc6 {[%emt 0:00:27]} 59. Rg5 {[%emt 0:00:00]} Rxa4 {[%emt 0:00:07]} 60. Rxg6+ {[%emt 0:00:00]} Kc7 {[%emt 0:01:37]} 61. e5 {[%emt 0:00:00]} b5 {[%emt 0:00:05]} 62. Rd6 {[%emt 0:00:00]} Ra8 {[%emt 0:02:08]} 63. Rd1 {[%emt 0:00:00]} b4 {[%emt 0:00:08]} 64. Rb1 {[%emt 0:00:00]} Rb8 {[%emt 0:00:26]} 65. Rb3 {[%emt 0:00:00]} Kc6 {[%emt 0:01:20]} 66. Kf5 {[%emt 0:00:00]} Kd5 {[%emt 0:00:09]} 67. Rd3+ {[%emt 0:00:00]} Kc4 {[%emt 0:00:19]} 68. Rd1 {[%emt 0:00:00]} b3 {[%emt 0:00:22]} 69. e6 {[%emt 0:00:00]} b2 {[%emt 0:00:48]} 70. e7 {[%emt 0:00:00]} Kc3 {[%emt 0:00:44]} 71. Ke6 {[%emt 0:00:00]} Ra8 {[%emt 0:00:23]} 72. Rb1 {[%emt 0:00:00]} Kc2 {[%emt 0:00:06]} 73. Rxb2+ {[%emt 0:00:00]} Kxb2 {[%emt 0:00:05]} 74. f5 {[%emt 0:00:00]} Kc3 {[%emt 0:00:09]} 75. f6 {[%emt 0:00:00]} 1-0

[Event "WYCC U14 Open 2019"]
[Site "Mumbai"]
[Date "2019.10.11"]
[Round "10.16"]
[White "Flores Quillas, Diego Saul Rodri"]
[Black "Sun, Jiajun B"]
[Result "1-0"]
[ECO "B42"]
[WhiteElo "2164"]
[BlackElo "1977"]
[Annotator "NA"]
[PlyCount "69"]
[EventDate "2019.10.02"]
[EventType "swiss"]
[EventCountry "IND"]
[SourceTitle "playchess.com"]
[Source "ChessBase"]
[SourceQuality "1"]
[TimeControl "40/5400+30:1800+30"]

1. e4 {[%emt 0:00:00]} c5 {[%emt 0:00:00]} 2. Nf3 {[%emt 0:00:00]} e6 {[%emt 0:00:00]} 3. d4 {[%emt 0:00:00]} cxd4 {[%emt 0:00:00]} 4. Nxd4 {[%emt 0:00:00]} a6 {[%emt 0:00:00]} 5. Bd3 {[%emt 0:00:00]} Qc7 {[%emt 0:00:09]} 6. Qe2 {[%emt 0:00:42]} d6 {[%emt 0:00:43]} 7. O-O {[%emt 0:00:24]} Nf6 {[%emt 0:00:06]} 8. f4 {[%emt 0:00:33]} Nbd7 {[%emt 0:00:08]} 9. c4 {[%emt 0:00:51]} Be7 {[%emt 0:01:50]} 10. Nc3 {[%emt 0:02:27]} h5 {[%emt 0:01:20]} 11. Kh1 {[%emt 0:05:22]} h4 {[%emt 0:07:32]} 12. Be3 {[%emt 0:01:18]} b6 {[%emt 0:01:03]} 13. Rac1 {[%emt 0:00:11]} Bb7 {[%emt 0:02:07]} 14. b4 {[%emt 0:00:32]} Qc8 {[%emt 0:06:33]} 15. Kg1 {[%emt 0:04:05]} Rb8 {[%emt 0:05:57]} 16. Bd2 {[%emt 0:04:59]} Nh5 {[%emt 0:00:47]} 17. Nd5 {[%emt 0:25:30]} Qd8 {[%emt 0:00:15]} 18. e5 {[%emt 0:00:41]} Nf8 {[%emt 0:31:54]} 19. Nxe7 {[%emt 0:08:33]} Qxe7 {[%emt 0:00:02]} 20. exd6 {[%emt 0:00:07]} Qxd6 {[%emt 0:00:03]} 21. Nf5 {[%emt 0:00:14]} Qc6 {[%emt 0:02:25]} 22. Be4 {[%emt 0:03:08]} Qc7 {[%emt 0:02:09]} 23. Bxb7 {[%emt 0:00:04]} Rxb7 {[%emt 0:00:02]} 24. c5 {[%emt 0:00:06]} Rb8 {[%emt 0:06:12]} 25. Nd6+ {[%emt 0:00:31]} Ke7 {[%emt 0:00:05]} 26. f5 {[%emt 0:03:20]} bxc5 {[%emt 0:05:26]} 27. bxc5 {[%emt 0:00:21]} f6 {[%emt 0:03:23]} 28. Rfe1 {[%emt 0:02:27]} Rb2 {[%emt 0:01:27]} 29. Qc4 {[%emt 0:08:58]} g6 {[%emt 0:05:27]} 30. Rxe6+ {[%emt 0:05:31]} Nxe6 {[%emt 0:00:32]} 31. Qxe6+ {[%emt 0:00:46]} Kf8 {[%emt 0:01:01]} 32. Qe8+ {[%emt 0:00:29]} Kg7 {[%emt 0:05:58]} 33. Qxg6+ {[%emt 0:00:12]} Kf8 {[%emt 0:00:32]} 34. Bh6+ {[%emt 0:00:20]} Ke7 {[%emt 0:00:03]} 35. Qxh5 {[%emt 0:00:09]} 1-0

[Event "WYCC U14 Open 2019"]
[Site "Mumbai"]
[Date "2019.10.12"]
[Round "11.1"]
[White "Amanzhol, Sultan"]
[Black "Suleymanli, Aydin"]
[Result "0-1"]
[ECO "D31"]
[WhiteElo "2032"]
[BlackElo "2426"]
[Annotator "ChessBase"]
[PlyCount "112"]
[EventDate "2019.10.02"]
[EventType "swiss"]
[EventCountry "IND"]
[SourceTitle "playchess.com"]
[Source "ChessBase"]
[SourceQuality "1"]
[TimeControl "40/5400+30:1800+30"]

1. d4 {[%emt 0:00:07]} e6 {[%emt 0:00:00]} 2. c4 {[%emt 0:04:20]} d5 {[%emt 0:00:00]} 3. Nc3 {[%emt 0:00:08]} Be7 {[%emt 0:00:00]} 4. Bf4 {[%emt 0:01:39]} Nf6 {[%emt 0:00:06]} 5. e3 {[%emt 0:00:43]} O-O {[%emt 0:00:09]} 6. Nf3 {[%emt 0:00:48]} c5 {[%emt 0:00:06]} 7. dxc5 {[%emt 0:03:21]} Bxc5 {[%emt 0:00:07]} 8. cxd5 {[%emt 0:02:15]} Nxd5 {[%emt 0:01:59]} 9. Nxd5 {[%emt 0:03:27]} exd5 {[%emt 0:00:08]} 10. a3 {[%emt 0:00:44]} Nc6 {[%emt 0:03:27]} 11. Be2 {[%emt 0:02:55]} Be7 {[%emt 0:00:58]} 12. O-O {[%emt 0:05:07]} Bf6 {[%emt 0:00:16]} 13. Qd2 {[%emt 0:03:03]} Qb6 {[%emt 0:09:47]} 14. Rab1 {[%emt 0:06:47]} Rd8 {[%emt 0:09:06]} 15. b4 {[%emt 0:07:00]} Bf5 {[%emt 0:17:30]} 16. Rbc1 {[%emt 0:07:26]} d4 {[%emt 0:03:37]} 17. exd4 {[%emt 0:02:10]} Bxd4 {[%emt 0:07:17]} 18. Bc4 {[%emt 0:12:44]} Bf6 {[%emt 0:10:21]} 19. Qa2 {[%emt 0:00:57]} Bg6 {[%emt 0:01:01]} 20. Rfd1 {[%emt 0:04:06]} Bh5 {[%emt 0:04:59]} 21. Be2 {[%emt 0:08:19]} Rxd1+ {[%emt 0:11:11]} 22. Rxd1 {[%emt 0:00:22]} Rd8 {[%emt 0:00:12]} 23. Rd5 {[%emt 0:01:58]} Bg4 {[%emt 0:06:51]} 24. Rb5 {[%emt 0:04:44]} Rd1+ {[%emt 0:00:22]} 25. Bxd1 {[%emt 0:01:25]} Qxb5 {[%emt 0:00:01]} 26. Qe2 {[%emt 0:01:49]} Qxe2 {[%emt 0:01:34]} 27. Bxe2 {[%emt 0:00:01]} Bb2 {[%emt 0:00:16]} 28. b5 {[%emt 0:01:11]} Bxf3 {[%emt 0:02:00]} 29. Bxf3 {[%emt 0:01:04]} Nd4 {[%emt 0:00:01]} 30. Be3 {[%emt 0:00:17]} Nxf3+ {[%emt 0:00:39]} 31. gxf3 {[%emt 0:00:07]} Bxa3 {[%emt 0:00:08]} 32. Bxa7 {[%emt 0:00:06]} Kf8 {[%emt 0:01:09]} 33. Bd4 {[%emt 0:03:06]} f6 {[%emt 0:00:18]} 34. Kg2 {[%emt 0:00:58]} Ke7 {[%emt 0:00:24]} 35. Kg3 {[%emt 0:00:07]} Bd6+ {[%emt 0:00:40]} 36. f4 {[%emt 0:01:41]} Ke6 {[%emt 0:00:12]} 37. Kf3 {[%emt 0:01:53]} Kd5 {[%emt 0:00:01]} 38. Ba1 {[%emt 0:00:41]} Kc4 {[%emt 0:00:20]} 39. b6 {[%emt 0:00:13]} Bc5 {[%emt 0:00:56]} 40. Ke4 {[%emt 0:01:29]} Bxb6 {[%emt 0:01:57]} 41. h4 {[%emt 0:31:17]} h5 {[%emt 0:30:28]} 42. f3 {[%emt 0:07:28]} Bf2 {[%emt 0:00:07]} 43. Kf5 {[%emt 0:00:06]} Bd4 {[%emt 0:00:08]} 44. Bxd4 {[%emt 0:00:18]} Kxd4 {[%emt 0:00:03]} 45. Kg6 {[%emt 0:00:08]} b5 {[%emt 0:00:04]} 46. Kxh5 {[%emt 0:00:15]} b4 {[%emt 0:00:07]} 47. Kg6 {[%emt 0:00:03]} b3 {[%emt 0:00:03]} 48. h5 {[%emt 0:00:13]} b2 {[%emt 0:00:05]} 49. Kxg7 {[%emt 0:00:08]} b1=Q {[%emt 0:00:05]} 50. h6 {[%emt 0:00:07]} Qg1+ {[%emt 0:00:44]} 51. Kf7 {[%emt 0:00:39]} Qh2 {[%emt 0:00:11]} 52. Kg7 {[%emt 0:00:04]} Qg3+ {[%emt 0:00:07]} 53. Kf7 {[%emt 0:00:04]} Qxf4 {[%emt 0:00:03]} 54. h7 {[%emt 0:00:12]} Qh6 {[%emt 0:00:04]} 55. Kg8 {[%emt 0:00:16]} Qg6+ {[%emt 0:00:03]} 56. Kh8 {[%emt 0:00:13]} Qf7 {[%emt 0:00:03]} 0-1

[Event "WYCC U14 Open 2019"]
[Site "Mumbai"]
[Date "2019.10.12"]
[Round "11.2"]
[White "Vo, Pham Thien Phuc"]
[Black "Srihari L R"]
[Result "1/2-1/2"]
[ECO "A80"]
[WhiteElo "1807"]
[BlackElo "2283"]
[Annotator "ChessBase"]
[PlyCount "103"]
[EventDate "2019.10.02"]
[EventType "swiss"]
[EventCountry "IND"]
[SourceTitle "playchess.com"]
[Source "ChessBase"]
[SourceQuality "1"]
[TimeControl "40/5400+30:1800+30"]

1. d4 {[%emt 0:00:00]} f5 {[%emt 0:00:05]} 2. Nf3 {[%emt 0:00:00]} Nf6 {[%emt 0:00:06]} 3. g3 {[%emt 0:00:00]} g6 {[%emt 0:00:05]} 4. Bg2 {[%emt 0:00:00]} Bg7 {[%emt 0:00:05]} 5. O-O {[%emt 0:00:58]} O-O {[%emt 0:00:08]} 6. b3 {[%emt 0:00:31]} c5 {[%emt 0:08:27]} 7. c3 {[%emt 0:10:38]} cxd4 {[%emt 0:06:35]} 8. cxd4 {[%emt 0:00:04]} Nc6 {[%emt 0:00:15]} 9. Bb2 {[%emt 0:00:20]} Ne4 {[%emt 0:03:48]} 10. Nbd2 {[%emt 0:08:28]} d6 {[%emt 0:07:21]} 11. Rc1 {[%emt 0:15:25]} Bd7 {[%emt 0:02:56]} 12. e3 {[%emt 0:06:53]} Rc8 {[%emt 0:09:15]} 13. Qe2 {[%emt 0:02:35]} a6 {[%emt 0:03:52]} 14. Nxe4 {[%emt 0:13:19]} fxe4 {[%emt 0:00:36]} 15. Nd2 {[%emt 0:00:03]} d5 {[%emt 0:00:14]} 16. Ba3 {[%emt 0:03:14]} Na7 {[%emt 0:14:54]} 17. Rxc8 {[%emt 0:00:46]} Nxc8 {[%emt 0:00:04]} 18. Rc1 {[%emt 0:02:30]} Na7 {[%emt 0:02:48]} 19. Nb1 {[%emt 0:07:14]} Nb5 {[%emt 0:05:31]} 20. Bb2 {[%emt 0:01:43]} Nd6 {[%emt 0:04:54]} 21. Nc3 {[%emt 0:03:53]} Bc6 {[%emt 0:00:17]} 22. Qd2 {[%emt 0:03:52]} Nf7 {[%emt 0:01:05]} 23. Ne2 {[%emt 0:00:44]} Ng5 {[%emt 0:00:39]} 24. Nf4 {[%emt 0:00:28]} Qd7 {[%emt 0:00:27]} 25. Qd1 {[%emt 0:07:42]} Nf3+ {[%emt 0:01:02]} 26. Bxf3 {[%emt 0:00:03]} exf3 {[%emt 0:00:07]} 27. a4 {[%emt 0:02:04]} g5 {[%emt 0:02:10]} 28. Nd3 {[%emt 0:00:04]} Qh3 {[%emt 0:01:46]} 29. Qf1 {[%emt 0:00:07]} Qh5 {[%emt 0:00:05]} 30. h3 {[%emt 0:07:41]} Bd7 {[%emt 0:00:59]} 31. Kh2 {[%emt 0:00:01]} Be6 {[%emt 0:02:35]} 32. Ne5 {[%emt 0:01:51]} Bxe5 {[%emt 0:01:55]} 33. dxe5 {[%emt 0:00:00]} Rc8 {[%emt 0:00:00]} 34. Rxc8+ {[%emt 0:01:19]} Bxc8 {[%emt 0:00:01]} 35. e4 {[%emt 0:00:19]} Be6 {[%emt 0:00:50]} 36. exd5 {[%emt 0:00:12]} Bxd5 {[%emt 0:00:01]} 37. g4 {[%emt 0:01:14]} Qh4 {[%emt 0:01:34]} 38. Bd4 {[%emt 0:00:47]} h5 {[%emt 0:00:22]} 39. Qd3 {[%emt 0:01:44]} hxg4 {[%emt 0:02:46]} 40. Qg6+ {[%emt 0:00:01]} Kf8 {[%emt 0:00:24]} 41. Qf5+ {[%emt 0:30:02]} Bf7 {[%emt 0:32:22]} 42. Qxg4 {[%emt 0:01:03]} Qxg4 {[%emt 0:01:29]} 43. hxg4 {[%emt 0:00:01]} Bxb3 {[%emt 0:00:30]} 44. a5 {[%emt 0:00:04]} Kf7 {[%emt 0:00:05]} 45. Be3 {[%emt 0:00:04]} Kg6 {[%emt 0:00:19]} 46. Bc5 {[%emt 0:00:09]} Kf7 {[%emt 0:00:30]} 47. Be3 {[%emt 0:00:06]} Kg6 {[%emt 0:00:44]} 48. Bc5 {[%emt 0:00:01]} e6 {[%emt 0:00:07]} 49. Bb6 {[%emt 0:00:08]} Bd5 {[%emt 0:00:23]} 50. Kg3 {[%emt 0:00:12]} Kf7 {[%emt 0:00:06]} 51. Kh3 {[%emt 0:00:11]} Be4 {[%emt 0:00:08]} 52. Kg3 {[%emt 0:00:08]} 1/2-1/2

[Event "WYCC U14 Open 2019"]
[Site "Mumbai"]
[Date "2019.10.12"]
[Round "11.3"]
[White "Morgunov, Marc"]
[Black "Kolay, Alex"]
[Result "1/2-1/2"]
[ECO "C07"]
[WhiteElo "2280"]
[BlackElo "2164"]
[Annotator "ChessBase"]
[PlyCount "74"]
[EventDate "2019.10.02"]
[EventType "swiss"]
[EventCountry "IND"]
[SourceTitle "playchess.com"]
[Source "ChessBase"]
[SourceQuality "1"]
[TimeControl "40/5400+30:1800+30"]

1. e4 {[%emt 0:00:00]} e6 {[%emt 0:00:00]} 2. d4 {[%emt 0:00:00]} d5 {[%emt 0:00:00]} 3. Nd2 {[%emt 0:00:00]} c5 {[%emt 0:00:00]} 4. Ngf3 {[%emt 0:00:38]} cxd4 {[%emt 0:00:18]} 5. Nxd4 {[%emt 0:01:08]} Nc6 {[%emt 0:00:28]} 6. Bb5 {[%emt 0:00:11]} Bd7 {[%emt 0:00:11]} 7. Nxc6 {[%emt 0:00:26]} bxc6 {[%emt 0:01:44]} 8. Bd3 {[%emt 0:00:15]} Bd6 {[%emt 0:00:52]} 9. Qe2 {[%emt 0:01:08]} Ne7 {[%emt 0:00:34]} 10. e5 {[%emt 0:03:31]} Bc7 {[%emt 0:09:03]} 11. Nf3 {[%emt 0:06:18]} Ng6 {[%emt 0:00:55]} 12. O-O {[%emt 0:03:36]} f6 {[%emt 0:07:40]} 13. exf6 {[%emt 0:19:49]} Qxf6 {[%emt 0:00:09]} 14. Bg5 {[%emt 0:01:48]} Qf7 {[%emt 0:03:52]} 15. Bxg6 {[%emt 0:05:12]} Qxg6 {[%emt 0:02:33]} 16. Bh4 {[%emt 0:00:52]} O-O {[%emt 0:08:14]} 17. Bg3 {[%emt 0:03:01]} Bxg3 {[%emt 0:04:39]} 18. hxg3 {[%emt 0:00:39]} Rab8 {[%emt 0:01:20]} 19. Ne5 {[%emt 0:05:39]} Qe8 {[%emt 0:00:06]} 20. b3 {[%emt 0:02:10]} Qe7 {[%emt 0:06:43]} 21. Rfe1 {[%emt 0:07:36]} Be8 {[%emt 0:02:00]} 22. Qd2 {[%emt 0:05:28]} Rf6 {[%emt 0:22:01]} 23. Re2 {[%emt 0:05:57]} c5 {[%emt 0:03:31]} 24. c4 {[%emt 0:01:37]} dxc4 {[%emt 0:03:23]} 25. Nxc4 {[%emt 0:00:11]} Bb5 {[%emt 0:00:44]} 26. Re4 {[%emt 0:01:47]} Bxc4 {[%emt 0:08:57]} 27. Rxc4 {[%emt 0:00:20]} Rd8 {[%emt 0:03:02]} 28. Qe3 {[%emt 0:03:03]} Rd5 {[%emt 0:00:26]} 29. Rac1 {[%emt 0:02:38]} Qd6 {[%emt 0:01:44]} 30. f3 {[%emt 0:07:47]} Rff5 {[%emt 0:03:50]} 31. Re4 {[%emt 0:01:06]} Rd1+ {[%emt 0:01:19]} 32. Rxd1 {[%emt 0:00:13]} Qxd1+ {[%emt 0:00:04]} 33. Kf2 {[%emt 0:00:33]} Rd5 {[%emt 0:00:24]} 34. Qe1 {[%emt 0:03:21]} Rd2+ {[%emt 0:00:46]} 35. Re2 {[%emt 0:00:05]} Rxe2+ {[%emt 0:00:32]} 36. Qxe2 {[%emt 0:00:05]} Qd4+ {[%emt 0:00:03]} 37. Kf1 {[%emt 0:01:27]} Kf7 {[%emt 0:00:38]} 1/2-1/2